bitfinex-derivatives/quotes_ETHF0:USTF0_20241005
["timestamp","ask_amount","ask_price","bid_price","bid_amount"]
[1728105961167,0.29008,2413.0,2412.9,3.2078]
[1728105966067,0.29008,2413.0,2412.9,3.6288]
[1728105966375,0.4129,2413.2,2412.9,8.29336641]
[1728105966668,3.2078,2413.5,2413.0,4.664475]
[1728105966965,3.2078,2413.5,2413.3,0.29003]
[1728105967169,3.2078,2413.5,2413.4,1.2245]
[1728105967360,3.2078,2413.5,2413.4,1.51453]
[1728105972069,0.29,2413.6,2413.4,1.51453]
[1728105972866,0.29,2413.6,2413.4,4.72233]
[1728105974371,0.387,2413.9,2413.5,4.1432]
[1728105974562,0.409,2413.9,2413.6,0.29]
[1728105974769,0.69897,2413.9,2413.6,0.29]
[1728105974972,0.69897,2413.9,2413.7,0.4025]
[1728105975269,0.69897,2413.9,2413.8,0.4144]
[1728105975472,12.37349564,2414.2,2413.8,0.4144]
[1728105975473,12.27749564,2414.2,2413.8,0.4144]
[1728105975673,0.67705,2414.1,2413.8,1.10467]
[1728105976072,0.28996,2414.0,2413.8,0.8147]
[1728105976375,0.3871,2414.1,2413.8,1.10468]
[1728105976376,0.67705,2414.1,2413.8,1.10468]
[1728105976570,0.67705,2414.1,2413.8,0.8147]
[1728105976571,0.28996,2414.0,2413.8,0.8147]
[1728105978181,0.67705,2414.1,2413.8,1.10468]
[1728105978372,0.28996,2414.0,2413.8,0.8147]
[1728105986574,0.3871,2414.1,2413.8,0.8147]
[1728105986575,0.28997,2413.9,2413.8,0.8147]
[1728105986779,0.28997,2413.9,2413.8,0.4144]
[1728105990280,0.28998,2413.8,2413.7,0.4025]
[1728105990579,1.11578,2413.8,2413.7,0.4025]
[1728105992186,0.8258,2413.8,2413.7,0.4025]
[1728105992385,0.28996,2414.0,2413.7,0.69248]
[1728105993681,0.4005,2414.1,2413.7,0.69248]
[1728105993892,0.28997,2413.9,2413.7,0.69248]
[1728105994078,0.28997,2413.9,2413.7,0.4025]
[1728105994385,0.28998,2413.8,2413.7,0.4025]
[1728105995793,0.4005,2414.1,2413.7,0.69249]
[1728105995794,0.28998,2413.9,2413.7,0.69249]
[1728105998888,0.28998,2413.9,2413.8,0.3869]
[1728106009610,1.12538,2414.1,2413.8,0.3869]
[1728106009799,0.28996,2414.0,2413.8,0.3869]
[1728106010999,0.4005,2414.1,2413.8,0.3869]
[1728106011192,0.28997,2413.9,2413.8,0.3869]
[1728106012395,0.4005,2414.1,2413.8,0.3869]
[1728106012611,0.28996,2414.0,2413.8,0.3869]
[1728106020209,0.28996,2414.0,2413.9,0.52082437]
[1728106021003,0.28996,2414.0,2413.8,0.3869]
[1728106021304,0.28996,2414.0,2413.9,0.52082451]
[1728106023913,0.28996,2414.0,2413.9,0.52079797]
[1728106024312,0.4005,2414.1,2413.9,0.52079387]
[1728106024505,0.4005,2414.1,2413.8,0.3869]
[1728106024708,0.28996,2414.0,2413.9,0.5208149]
[1728106025105,0.28997,2413.9,2413.8,0.3869]
[1728106025405,0.28997,2413.9,2413.8,0.90771688]
[1728106027317,0.67897,2413.9,2413.8,0.90774104]
[1728106030016,0.67897,2413.9,2413.8,1.45920827]
[1728106030421,0.67897,2413.9,2413.8,1.45922416]
[1728106031508,0.67897,2413.9,2413.8,0.907685]
[1728106031820,0.67897,2413.9,2413.8,1.45929896]
[1728106032516,0.67897,2413.9,2413.8,0.907685]
[1728106033710,0.67897,2413.9,2413.8,0.3869]
[1728106033915,0.67897,2413.9,2413.8,0.90788205]
[1728106034116,0.67897,2413.9,2413.8,0.90787515]
[1728106034717,0.67897,2413.9,2413.8,1.45632183]
[1728106035213,0.67897,2413.9,2413.8,0.90787515]
[1728106040534,0.67897,2413.9,2413.8,0.90809039]
[1728106043941,0.67897,2413.9,2413.8,0.90828769]
[1728106044436,0.67897,2413.9,2413.8,0.90828428]
[1728106047334,0.67897,2413.9,2413.8,0.52155108]
[1728106047731,0.67897,2413.9,2413.7,3.6103]
[1728106047940,0.399,2413.8,2413.7,3.6103]
[1728106048238,0.68898,2413.8,2413.7,4.68086903]
[1728106048836,0.68898,2413.8,2413.7,1.47306903]
[1728106049236,0.399,2413.8,2413.7,4.68086903]
[1728106049436,0.399,2413.8,2413.7,4.97085903]
[1728106049638,0.399,2413.8,2413.7,4.68086903]
[1728106049843,0.68898,2413.8,2413.7,4.68086903]
[1728106050234,0.399,2413.8,2413.7,4.68086903]
[1728106050443,0.68898,2413.8,2413.7,4.68086903]
[1728106050934,0.68898,2413.8,2413.7,3.6103]
[1728106051135,0.399,2413.8,2413.7,4.68080195]
[1728106051642,0.399,2413.8,2413.7,4.13181477]
[1728106051934,0.399,2413.8,2413.7,4.42180477]
[1728106052740,0.399,2413.8,2413.7,4.13181477]
[1728106052945,0.68898,2413.8,2413.7,4.13181477]
[1728106053750,0.68898,2413.8,2413.7,0.92401477]
[1728106054044,0.68898,2413.8,2413.7,4.13181477]
[1728106054351,0.399,2413.8,2413.7,3.6103]
[1728106054548,0.399,2413.8,2413.7,4.13165518]
[1728106054848,0.399,2413.8,2413.7,4.13163878]
[1728106055745,0.68898,2413.8,2413.7,4.13163878]
[1728106056247,0.399,2413.8,2413.7,4.13163878]
[1728106057251,0.399,2413.8,2413.7,0.92383878]
[1728106057636,0.68898,2413.8,2413.7,4.13163878]
[1728106057850,0.399,2413.8,2413.7,4.13163878]
[1728106058443,0.399,2413.8,2413.7,0.92383878]
[1728106059149,0.399,2413.8,2413.7,4.13163878]
[1728106059351,0.399,2413.8,2413.7,0.92383878]
[1728106060550,0.399,2413.8,2413.7,4.13163878]
[1728106060943,0.68898,2413.8,2413.7,4.13163878]
[1728106061348,0.68898,2413.8,2413.7,4.13153706]
[1728106061549,0.68898,2413.8,2413.7,0.92373706]
[1728106061951,0.399,2413.8,2413.7,4.13153706]
[1728106062449,0.68898,2413.8,2413.7,4.13153706]
[1728106062652,0.68898,2413.8,2413.7,0.92373706]
[1728106062859,0.68898,2413.8,2413.7,4.13153706]
[1728106064050,0.68898,2413.8,2413.7,0.92373706]
[1728106064651,0.68898,2413.8,2413.7,0.4025]
[1728106064858,0.68898,2413.8,2413.7,0.92372075]
[1728106065065,0.68898,2413.8,2413.7,4.13152075]
[1728106065356,0.68898,2413.8,2413.7,3.72902075]
[1728106065651,0.68898,2413.8,2413.7,4.13692075]
[1728106066050,0.68898,2413.8,2413.7,0.92912075]
[1728106066253,0.68898,2413.8,2413.7,4.13692075]
[1728106068153,0.68898,2413.8,2413.7,0.4079]
[1728106068358,0.68898,2413.8,2413.7,4.13696166]
[1728106069261,0.68898,2413.8,2413.7,0.92916166]
[1728106069655,0.68898,2413.8,2413.7,4.13696166]
[1728106071158,0.68898,2413.8,2413.7,0.92916166]
[1728106071357,0.68898,2413.8,2413.7,4.13696166]
[1728106071556,0.68898,2413.8,2413.7,4.13695863]
[1728106071756,0.68898,2413.8,2413.7,0.92915863]
[1728106072159,0.68898,2413.8,2413.7,4.13695863]
[1728106072560,0.68898,2413.8,2413.7,0.92915863]
[1728106072754,0.68898,2413.8,2413.7,4.13695863]
[1728106073158,0.68898,2413.8,2413.7,0.92915863]
[1728106074160,0.68898,2413.8,2413.7,0.4079]
[1728106075963,0.68898,2413.8,2413.7,0.92936338]
[1728106076164,0.68898,2413.8,2413.7,0.4079]
[1728106084766,0.68898,2413.8,2413.7,0.92940669]
[1728106084961,0.68898,2413.8,2413.7,0.92940709]
[1728106087465,0.399,2413.8,2413.7,0.92940709]
[1728106087667,0.68898,2413.8,2413.7,0.92940709]
[1728106087870,0.68898,2413.8,2413.7,0.92943697]
[1728106088165,0.399,2413.8,2413.7,0.92943697]
[1728106089368,0.68898,2413.8,2413.7,0.92943697]
[1728106089870,0.399,2413.8,2413.7,0.92943697]
[1728106090071,0.68898,2413.8,2413.7,0.92943697]
[1728106090267,0.399,2413.8,2413.7,0.92943697]
[1728106091571,0.399,2413.8,2413.7,0.92950629]
[1728106095568,0.68898,2413.8,2413.7,0.52160629]
[1728106095768,0.68898,2413.8,2413.5,0.4236]
[1728106095769,0.29,2413.6,2413.5,0.4236]
[1728106095969,0.4023,2413.7,2413.5,0.94540154]
[1728106096172,0.4186,2413.6,2413.5,0.4236]
[1728106096373,0.4186,2413.6,2413.5,1.49471601]
[1728106096573,0.7086,2413.6,2413.5,1.49471601]
[1728106097376,0.4186,2413.6,2413.5,1.49471601]
[1728106097880,0.7086,2413.6,2413.5,0.94541624]
[1728106098378,0.4186,2413.6,2413.5,0.94541624]
[1728106098674,0.4186,2413.6,2413.5,1.23543624]
[1728106098878,0.4186,2413.6,2413.5,0.4236]
[1728106099079,0.4186,2413.6,2413.5,0.94541103]
[1728106099478,0.7086,2413.6,2413.5,0.94541103]
[1728106100376,0.4186,2413.6,2413.5,0.94541103]
[1728106101269,0.7086,2413.6,2413.5,0.52181103]
[1728106101771,0.4186,2413.6,2413.5,0.52181103]
[1728106101976,4.5618,2413.6,2413.4,3.2078]
[1728106102172,0.67992,2413.5,2413.4,3.2078]
[1728106102372,0.3899,2413.5,2413.4,3.2078]
[1728106102571,4.5331,2413.5,2413.4,3.2078]
[1728106104074,0.3899,2413.5,2413.4,3.2078]
[1728106104281,0.3899,2413.5,2413.4,3.6213]
[1728106104782,0.3899,2413.5,2413.4,0.4135]
[1728106104977,0.3899,2413.5,2413.4,3.6213]
[1728106106878,0.3899,2413.5,2413.4,0.4135]
[1728106107081,0.3899,2413.5,2413.4,3.6213]
[1728106107478,0.3899,2413.5,2413.4,0.4135]
[1728106108975,0.67992,2413.5,2413.4,0.4135]
[1728106120505,0.67992,2413.5,2413.2,0.8247]
[1728106120506,0.29004,2413.3,2413.2,0.8247]
[1728106120700,4.5331,2413.5,2413.1,3.2078]
[1728106120701,0.29005,2413.2,2413.1,3.2078]
[1728106120902,1.07115,2413.2,2413.1,3.2078]
[1728106125408,0.29006,2413.1,2413.0,0.8145]
[1728106126214,1.07116,2413.2,2413.0,0.8145]
[1728106128309,0.7811,2413.2,2413.0,0.8145]
[1728106128497,1.07115,2413.2,2413.0,0.8145]
[1728106128702,0.7811,2413.2,2413.0,0.8145]
[1728106130110,0.7811,2413.2,2413.0,1.10458]
[1728106130312,0.29005,2413.3,2413.0,1.10458]
[1728106132716,0.29005,2413.2,2413.0,0.8145]
[1728106132918,0.29005,2413.3,2413.0,1.10458]
[1728106133715,0.29005,2413.2,2413.0,0.8145]
[1728106136215,0.29006,2413.2,2413.0,0.8145]
[1728106137118,0.72508,2413.4,2413.0,0.8145]
[1728106137313,0.29006,2413.1,2413.0,0.8145]
[1728106138817,0.836,2413.5,2413.0,4.9585]
[1728106139112,0.387,2413.6,2413.1,3.2078]
[1728106139309,0.29002,2413.5,2413.2,0.4241]
[1728106139509,0.29002,2413.5,2413.3,0.4096]
[1728106139708,0.29001,2413.6,2413.3,1.12633]
[1728106139911,0.7125,2413.7,2413.4,0.29003]
[1728106140111,0.29001,2413.6,2413.3,1.12633]
[1728106140317,0.4225,2413.7,2413.3,0.8363]
[1728106140513,0.29,2413.6,2413.3,1.12633]
[1728106141611,0.29,2413.6,2413.3,0.8363]
[1728106141814,0.67699,2413.8,2413.5,0.29001]
[1728106142117,0.28999,2413.7,2413.6,0.8392]
[1728106142309,0.28999,2413.8,2413.6,0.8392]
[1728106143411,0.8404,2413.9,2413.6,0.8392]
[1728106143615,0.28999,2413.7,2413.6,0.8392]
[1728106167737,0.8404,2413.9,2413.6,0.8392]
[1728106167941,0.28998,2413.8,2413.6,0.8392]
[1728106168136,0.8404,2413.9,2413.6,0.8392]
[1728106168343,0.28999,2413.8,2413.6,0.8392]
[1728106170742,0.28999,2413.7,2413.6,0.8392]
[1728106174239,0.28999,2413.8,2413.6,0.8392]
[1728106183249,1.13037,2413.9,2413.6,0.8392]
[1728106184352,0.427,2413.9,2413.7,0.81171494]
[1728106184659,0.427,2413.9,2413.8,0.427]
[1728106185151,0.427,2413.9,2413.8,0.94867247]
[1728106189058,0.71697,2413.9,2413.8,0.94867247]
[1728106191461,0.71697,2413.9,2413.8,0.52167247]
[1728106191963,0.71697,2413.9,2413.6,1.2394]
[1728106191964,0.28999,2413.7,2413.6,1.2394]
[1728106192163,0.28999,2413.7,2413.6,1.76118941]
[1728106192364,0.3988,2413.8,2413.6,2.31046328]
[1728106192365,0.68879,2413.8,2413.6,2.31046328]
[1728106192562,0.68878,2413.8,2413.7,0.52178941]
[1728106195763,0.68878,2413.8,2413.6,1.2394]
[1728106196068,0.68878,2413.8,2413.7,0.5217825]
[1728106196463,0.3988,2413.8,2413.7,0.5217825]
[1728106197266,0.427,2413.9,2413.7,0.5217825]
[1728106197566,12.32489035,2414.1,2414.0,0.28996]
[1728106197567,0.387,2414.1,2414.0,0.28996]
[1728106197767,3.2078,2414.2,2414.0,4.95397778]
[1728106198072,3.2078,2414.2,2414.1,1.07414]
[1728106198570,3.2078,2414.2,2414.1,1.59557501]
[1728106199176,3.2078,2414.2,2414.1,1.07414]
[1728106199876,0.69282,2414.3,2414.1,1.07414]
[1728106200263,0.69282,2414.3,2414.2,0.4064]
[1728106206378,0.4029,2414.3,2414.2,0.4064]
[1728106207882,0.69282,2414.3,2414.2,0.4064]
[1728106208783,0.4029,2414.3,2414.2,0.4064]
[1728106210882,0.6769,2414.5,2414.2,0.69633]
[1728106211069,0.7176,2414.5,2414.2,0.69633]
[1728106211878,0.7176,2414.5,2414.2,0.4064]
[1728106212183,0.7176,2414.5,2414.2,0.69633]
[1728106212582,0.7176,2414.5,2414.2,0.4064]
[1728106212780,0.28991,2414.4,2414.2,0.4064]
[1728106213584,0.7176,2414.5,2414.2,0.4064]
[1728106213980,0.4277,2414.5,2414.2,0.4064]
[1728106214284,0.7176,2414.5,2414.2,0.69633]
[1728106214985,0.28991,2414.4,2414.2,0.4064]
[1728106216982,0.7176,2414.5,2414.2,0.69633]
[1728106217487,0.7176,2414.5,2414.3,0.28991]
[1728106217488,0.4277,2414.5,2414.3,0.28991]
[1728106218385,0.4277,2414.5,2414.2,0.69632]
[1728106218583,0.4277,2414.5,2414.3,0.28992]
[1728106219076,0.67688,2414.7,2414.4,0.28991]
[1728106219281,0.67688,2414.7,2414.5,1.2114]
[1728106219282,0.28988,2414.7,2414.5,1.2114]
[1728106220085,0.28988,2414.6,2414.5,1.2114]
[1728106223389,0.28988,2414.6,2414.5,0.8175]
[1728106224287,0.3989,2414.8,2414.5,0.8175]
[1728106224489,0.3989,2414.8,2414.5,1.1074]
[1728106224490,0.68876,2414.8,2414.5,1.1074]
[1728106224686,0.68876,2414.8,2414.6,0.4098]
[1728106224886,0.3989,2414.8,2414.6,0.4098]
[1728106225192,1.06895,2414.9,2414.6,0.69968]
[1728106225792,0.7791,2414.9,2414.6,0.4098]
[1728106225988,0.7791,2414.9,2414.6,3.6176]
[1728106226188,0.28986,2414.8,2414.6,3.6176]
[1728106226883,0.7791,2414.9,2414.5,0.8175]
[1728106226884,0.28987,2414.7,2414.5,0.8175]
[1728106227085,0.28988,2414.6,2414.5,0.8175]
[1728106227296,0.4047,2414.7,2414.3,4.0988]
[1728106227485,0.28991,2414.4,2414.3,3.2078]
[1728106227794,0.28992,2414.3,2414.2,0.3935]
[1728106227991,0.69462,2414.3,2414.2,0.3935]
[1728106234194,0.4047,2414.3,2414.2,0.3935]
[1728106234392,0.69462,2414.3,2414.2,0.3935]
[1728106235105,0.4047,2414.3,2414.2,0.3935]
[1728106236698,0.69462,2414.3,2414.2,0.3935]
[1728106237897,0.7,2414.5,2414.2,0.68343]
[1728106238099,1.1172,2414.5,2414.2,0.68343]
[1728106238898,0.8273,2414.5,2414.2,0.3935]
[1728106239101,0.28991,2414.4,2414.2,0.3935]
[1728106240893,0.8273,2414.5,2414.2,0.3935]
[1728106241093,0.28992,2414.3,2414.2,0.3935]
[1728106242392,0.8273,2414.5,2414.2,0.68343]
[1728106242393,0.28991,2414.4,2414.2,0.68343]
[1728106243100,0.28991,2414.4,2414.3,0.4142]
[1728106245800,0.2899,2414.5,2414.3,0.70411]
[1728106246003,1.08408,2414.7,2414.5,0.28989]
[1728106246304,3.89346,2414.8,2414.6,1.10398]
[1728106246800,0.68566,2414.8,2414.6,1.10398]
[1728106247000,0.68566,2414.8,2414.7,0.4148]
[1728106248702,0.28986,2414.8,2414.7,0.4148]
[1728106248910,5.002,2414.9,2414.7,0.4148]
[1728106248911,4.88426,2414.9,2414.7,0.4148]
[1728106250506,3.5958,2415.1,2414.7,0.4148]
[1728106250710,0.28984,2415.0,2414.7,0.70466]
[1728106253700,0.28984,2415.0,2414.8,0.28986]
[1728106254106,0.28984,2415.0,2414.9,0.4135]
[1728106254820,4.0033,2415.1,2414.9,0.70335]
[1728106254821,1.08533,2415.1,2414.9,0.70335]
[1728106255007,1.08533,2415.1,2415.0,0.3882]
[1728106262427,1.08532,2415.1,2415.0,0.3882]
[1728106265329,0.7955,2415.1,2415.0,0.3882]
[1728106266423,0.7955,2415.1,2414.9,0.4135]
[1728106266623,0.28984,2415.0,2414.9,0.4135]
[1728106267627,1.08533,2415.1,2414.9,0.4135]
[1728106267821,1.08533,2415.1,2414.9,0.70334]
[1728106271928,1.08533,2415.1,2414.9,0.70335]
[1728106272930,0.28985,2414.9,2414.8,3.2078]
[1728106274229,4.1408,2414.9,2414.5,0.096]
[1728106274425,1.52008,2415.1,2414.4,0.29]
[1728106274426,0.28987,2414.7,2414.4,0.4057]
[1728106274630,0.28987,2414.7,2414.5,0.28989]
[1728106274826,1.2209,2414.8,2414.4,0.4057]
[1728106275134,0.2899,2414.5,2414.4,0.4057]
[1728106275732,1.94558,2414.8,2414.3,3.6013]
[1728106275931,0.69181,2414.4,2414.3,3.6013]
[1728106278025,0.4019,2414.4,2414.3,3.6013]
[1728106278232,0.4019,2414.4,2414.3,3.89122]
[1728106278431,0.805,2414.4,2414.3,3.89122]
[1728106278632,1.09491,2414.4,2414.3,3.6013]
[1728106279336,1.09491,2414.4,2414.3,3.2078]
[1728106280133,0.805,2414.4,2414.3,3.2078]
[1728106280326,0.4047,2414.8,2414.3,3.2078]
[1728106280526,0.28989,2414.6,2414.4,0.2899]
[1728106280726,0.796,2414.7,2414.4,0.7064]
[1728106281027,0.796,2414.7,2414.5,0.3936]
[1728106281342,1.08588,2414.7,2414.5,0.3936]
[1728106281534,0.28988,2414.6,2414.5,0.3936]
[1728106283133,0.2899,2414.5,2414.3,3.2078]
[1728106283334,0.28989,2414.6,2414.3,3.49772]
[1728106283735,0.796,2414.7,2414.3,3.2078]
[1728106283938,0.2899,2414.5,2414.3,3.2078]
[1728106284132,0.796,2414.7,2414.3,3.2078]
[1728106284338,0.28989,2414.6,2414.3,3.49772]
[1728106284538,0.2899,2414.5,2414.3,3.49772]
[1728106284730,0.796,2414.7,2414.3,3.2078]
[1728106284932,0.68771,2414.4,2414.3,3.2078]
[1728106285944,0.68771,2414.4,2414.2,0.3882]
[1728106285945,0.3978,2414.4,2414.2,0.3882]
[1728106286141,0.68482,2414.3,2414.2,0.3882]
[1728106293949,0.68482,2414.3,2413.9,3.91346]
[1728106293950,0.28995,2414.1,2413.9,3.91346]
[1728106294252,0.4054,2414.0,2413.9,4.32837]
[1728106296855,0.4054,2414.0,2413.9,1.12057]
[1728106297054,0.4054,2414.0,2413.9,4.32837]
[1728106297762,0.4054,2414.0,2413.9,1.12057]
[1728106297951,0.4054,2414.0,2413.9,4.32837]
[1728106298650,0.4054,2414.0,2413.9,1.12057]
[1728106298958,0.4054,2414.0,2413.9,4.32837]
[1728106300159,0.4054,2414.0,2413.9,4.0384]
[1728106300455,0.69536,2414.0,2413.9,3.6227]
[1728106301961,0.4054,2414.0,2413.9,3.6227]
[1728106302156,0.69536,2414.0,2413.9,3.6227]
[1728106302355,0.69536,2414.0,2413.9,4.0369]
[1728106305560,0.69536,2414.0,2413.9,0.8291]
[1728106307562,0.4054,2414.0,2413.9,0.8291]
[1728106307961,0.69536,2414.0,2413.9,0.8291]
[1728106313759,0.4054,2414.0,2413.9,0.8291]
[1728106315256,0.69536,2414.0,2413.9,0.8291]
[1728106323778,0.69536,2414.0,2413.9,1.34962462]
[1728106326582,0.69536,2414.0,2413.9,0.93542462]
[1728106326784,0.4054,2414.0,2413.8,0.3869]
[1728106326970,0.28997,2413.9,2413.8,0.3869]
[1728106327171,0.28997,2413.9,2413.8,0.9075455]
[1728106328181,0.28997,2413.9,2413.8,0.3869]
[1728106328881,0.69536,2414.0,2413.8,0.3869]
[1728106329580,0.69536,2414.0,2413.8,0.67688]
[1728106331681,0.28993,2414.2,2413.8,0.3869]
[1728106331878,0.777,2414.3,2414.0,0.28996]
[1728106332181,0.777,2414.3,2414.2,0.28993]
[1728106332182,0.387,2414.3,2414.2,0.28993]
[1728106332482,0.2899,2414.5,2414.2,0.81095013]
[1728106332682,0.2899,2414.5,2414.3,0.4111]
[1728106333071,0.2899,2414.5,2414.4,0.4195]
[1728106335077,0.777,2414.6,2414.4,0.4195]
[1728106335282,3.26301396,2414.7,2414.5,0.3858]
[1728106335477,3.55289396,2414.7,2414.5,0.67569]
[1728106335684,3.26301396,2414.7,2414.5,0.67569]
[1728106335879,3.26301396,2414.7,2414.6,0.28988]
[1728106336276,3.26301396,2414.7,2414.6,0.520564]
[1728106336581,3.55289396,2414.7,2414.6,0.52056374]
[1728106336777,3.55289396,2414.7,2414.5,3.8835]
[1728106336978,3.55289396,2414.7,2414.6,0.52056386]
[1728106337175,0.28988,2414.6,2414.5,3.5936]
[1728106338685,0.28988,2414.6,2414.5,3.2078]
[1728106341381,0.2899,2414.5,2414.4,3.6273]
[1728106342178,0.2899,2414.5,2414.4,0.4195]
[1728106342380,0.2899,2414.5,2414.4,3.6273]
[1728106343593,0.28991,2414.4,2414.3,0.4072]
[1728106351281,0.28991,2414.4,2414.1,0.7967]
[1728106351492,1.12843,2414.3,2414.1,0.7967]
[1728106352187,0.8385,2414.3,2414.1,0.7967]
[1728106352392,0.8385,2414.3,2414.1,1.08664]
[1728106352692,0.8089,2414.6,2414.1,0.7967]
[1728106352888,0.28991,2414.4,2414.1,1.08664]
[1728106353087,0.7075,2414.5,2414.1,1.08664]
[1728106355400,0.28992,2414.4,2414.1,1.08664]
[1728106356697,0.28992,2414.4,2414.1,4.0045]
[1728106356895,0.28992,2414.4,2414.1,4.29444]
[1728106357290,0.28992,2414.4,2414.1,1.08664]
[1728106363392,0.7075,2414.5,2414.2,0.28993]
[1728106363598,0.7075,2414.5,2414.3,0.4152]
[1728106363801,0.7075,2414.5,2414.4,0.4182]
[1728106364003,0.7075,2414.5,2414.4,0.8056]
[1728106368903,0.7075,2414.5,2414.4,0.3874]
[1728106370003,0.7075,2414.5,2414.3,0.4152]
[1728106370004,0.28991,2414.4,2414.3,0.4152]
[1728106374519,0.28992,2414.3,2414.2,0.4047]
[1728106381718,3.67636869,2414.5,2414.2,0.4047]
[1728106381921,3.93565869,2414.6,2414.3,0.70132]
[1728106382319,0.387,2414.6,2414.5,3.4977]
[1728106382517,3.64576869,2415.0,2414.5,4.81065937]
[1728106382720,0.387,2415.0,2414.7,0.28986]
[1728106382925,4.04119869,2415.1,2414.8,4.0067]
[1728106382926,3.65536869,2415.1,2414.8,4.0067]
[1728106383218,7.39669681,2415.3,2414.8,4.0067]
[1728106383219,0.387,2415.3,2415.0,0.28983]
[1728106383418,0.28979,2415.4,2415.1,3.92202]
[1728106383615,0.28979,2415.4,2415.1,3.6322]
[1728106387123,0.28979,2415.4,2415.1,0.4244]
[1728106387321,0.387,2415.5,2415.1,0.4244]
[1728106387520,0.2898,2415.3,2415.1,0.4244]
[1728106393430,0.2898,2415.3,2415.2,0.3974]
[1728106394632,0.2898,2415.3,2415.2,0.8019]
[1728106397633,0.28977,2415.6,2415.4,0.28978]
[1728106397832,0.28976,2415.7,2415.4,0.28978]
[1728106398033,0.28976,2415.7,2415.5,0.4123]
[1728106398235,0.28976,2415.7,2415.6,0.8058]
[1728106398737,0.28974,2415.8,2415.6,0.8058]
[1728106398940,0.28972,2416.0,2415.7,0.28975]
[1728106399136,0.28973,2415.9,2415.7,0.28975]
[1728106399940,0.28973,2415.9,2415.6,4.0136]
[1728106400236,0.28973,2415.9,2415.6,4.30336]
[1728106400437,4.0375,2416.1,2415.6,4.30336]
[1728106400638,0.28974,2415.8,2415.6,4.30336]
[1728106401541,0.28972,2416.0,2415.7,0.28975]
[1728106402039,0.28974,2415.9,2415.6,4.30336]
[1728106402832,0.28974,2415.8,2415.6,4.0136]
[1728106403238,0.28974,2415.8,2415.6,4.30336]
[1728106404643,0.28974,2415.8,2415.6,4.0136]
[1728106405537,4.0375,2416.1,2415.6,4.0136]
[1728106405739,0.28974,2415.9,2415.6,4.30336]
[1728106405936,4.0375,2416.1,2415.6,4.0136]
[1728106406140,0.28974,2415.8,2415.6,4.9036]
[1728106406335,0.28974,2415.8,2415.6,5.19336]
[1728106406943,0.28974,2415.9,2415.6,5.19336]
[1728106407439,0.89,2416.0,2415.6,4.9036]
[1728106407639,0.28972,2416.0,2415.7,0.28975]
[1728106409242,4.0375,2416.1,2415.7,0.28975]
[1728106409435,0.28973,2415.9,2415.7,0.28975]
[1728106409744,0.28973,2415.9,2415.7,1.17975]
[1728106412146,0.8297,2416.1,2415.7,0.89]
[1728106412147,0.28974,2415.8,2415.7,0.89]
[1728106412536,0.8297,2416.1,2415.7,5.31895]
[1728106412537,0.28973,2416.0,2415.7,5.31895]
[1728106412737,0.28973,2415.9,2415.7,0.89]
[1728106417349,0.28974,2415.8,2415.6,4.0136]
[1728106418043,0.28974,2415.8,2415.6,4.30336]
[1728106420050,0.28974,2415.8,2415.6,4.0136]
[1728106420352,0.28975,2415.7,2415.6,3.2078]
[1728106420539,1.98535,2415.7,2415.6,3.2078]
[1728106425643,1.98535,2415.7,2415.4,3.2078]
[1728106425644,0.28978,2415.5,2415.4,3.2078]
[1728106426846,0.4095,2415.6,2415.4,3.2078]
[1728106427051,0.69927,2415.6,2415.4,4.0978]
[1728106427359,0.4095,2415.6,2415.4,4.0978]
[1728106427552,0.28978,2415.5,2415.4,4.0978]
[1728106427752,0.28978,2415.5,2415.4,3.2078]
[1728106427953,0.4095,2415.6,2415.4,3.2078]
[1728106427954,0.69927,2415.6,2415.4,3.2078]
[1728106428355,0.28978,2415.5,2415.4,3.2078]
[1728106428852,0.69927,2415.6,2415.4,3.2078]
[1728106431157,0.4095,2415.6,2415.4,3.2078]
[1728106431357,0.28978,2415.5,2415.4,3.2078]
[1728106431561,0.69927,2415.6,2415.4,3.2078]
[1728106432062,0.69927,2415.6,2415.3,2.01799]
[1728106435564,0.69927,2415.6,2415.3,1.7282]
[1728106435774,0.69927,2415.6,2415.4,0.28979]
[1728106436962,0.28978,2415.5,2415.3,2.018]
[1728106437370,0.69927,2415.6,2415.3,2.018]
[1728106438366,0.28978,2415.5,2415.3,2.018]
[1728106440267,0.28978,2415.5,2415.3,1.7282]
[1728106440569,0.28978,2415.5,2415.1,4.0948]
[1728106440570,0.89,2415.4,2415.1,3.2078]
[1728106440772,0.28982,2415.1,2415.0,0.3941]
[1728106441068,0.89,2415.2,2414.9,0.8113]
[1728106441069,0.28984,2415.0,2414.9,0.8113]
[1728106441276,0.68504,2415.0,2414.9,0.8113]
[1728106442469,0.3952,2415.0,2414.9,0.8113]
[1728106443062,0.68504,2415.0,2414.9,0.8113]
[1728106443669,0.3952,2415.0,2414.9,0.8113]
[1728106447379,0.3952,2415.0,2414.6,3.2078]
[1728106447380,0.28986,2414.8,2414.6,3.2078]
[1728106447677,0.28987,2414.7,2414.6,3.2078]
[1728106448274,0.28986,2414.8,2414.6,3.2078]
[1728106448582,1.08106,2414.9,2414.6,4.0978]
[1728106451280,0.3952,2415.0,2414.8,0.89]
[1728106451468,0.68632,2415.2,2414.9,0.8243]
[1728106451671,0.68632,2415.2,2414.9,1.2256]
[1728106452980,0.28982,2415.1,2414.9,1.2256]
[1728106453878,0.3965,2415.2,2414.9,1.2256]
[1728106454084,1.2841,2415.3,2414.9,5.61325]